fUSD/lending_fUSD_20250526
["ID","MTS","AMOUNT","RATE_DAILY","PERIOD"]
[362389280,1748245839450,-433.2945797,0.00019998,2]
[362389281,1748245839459,-420.0,0.00019998,2]
[362389282,1748245839469,-420.0,0.00019998,2]
[362389283,1748245839479,-420.0,0.00019998,2]
[362389284,1748245839489,-420.0,0.00019998,2]
[362389285,1748245839498,-420.0,0.00019998,2]
[362389286,1748245839508,-342.86911917,0.00019998,2]
[362389287,1748245839518,-420.0,0.00019998,2]
[362389288,1748245839528,-375.7429692,0.00019998,2]
[362389289,1748245839538,-420.0,0.00019998,2]
[362389290,1748245839548,-290.7,0.00019998,2]
[362389291,1748245839557,-420.0,0.00019998,2]
[362389294,1748245839567,-263.59798469,0.00019998,2]
[362389296,1748245839577,-358.61820385,0.00019998,2]
[362389297,1748245839589,-478.74370272,0.00019998,2]
[362389298,1748245839599,-420.0,0.00019998,2]
[362389299,1748245839608,-425.06624239,0.00019998,2]
[362389300,1748245839618,-420.0,0.00019998,2]
[362389301,1748245839628,-449.91292524,0.00019998,2]
[362389302,1748245839637,-449.17304445,0.00019998,2]
[362389303,1748245839648,-427.75061437,0.00019998,2]
[362389304,1748245839658,-420.0,0.00019998,2]
[362389305,1748245839667,-426.54818477,0.00019998,2]
[362389306,1748245839677,-425.40410844,0.00019998,2]
[362389307,1748245839687,-420.0,0.00019998,2]
[362389308,1748245839696,-552.23738255,0.00019998,2]
[362389309,1748245839706,-420.0,0.00019998,2]
[362389310,1748245839716,-212.4,0.00019998,2]
[362389311,1748245839726,-420.0,0.00019998,2]
[362389312,1748245839735,-420.0,0.00019998,2]
[362389313,1748245839745,-420.0,0.00019998,2]
[362389314,1748245839755,-420.0,0.00019998,2]
[362389315,1748245839764,-236.89502987,0.00019998,2]
[362389316,1748245839773,-420.0,0.00019998,2]
[362389317,1748245839783,-467.29033107,0.00019998,2]
[362389318,1748245839793,-4834.23,0.00019998,2]
[362389319,1748245839803,-401.50001085,0.00019998,2]
[362389320,1748245839814,-420.0,0.00019998,2]
[362389321,1748245839825,-420.0,0.00019998,2]
[362389322,1748245839835,-429.67703586,0.00019998,2]
[362389323,1748245839844,-429.49353239,0.00019998,2]
[362389324,1748245839854,-420.0,0.00019998,2]
[362389325,1748245839864,-420.0,0.00019998,2]
[362389326,1748245839873,-420.0,0.00019998,2]
[362389327,1748245839883,-670.45,0.00019998,2]
[362389328,1748245839895,-437.91030301,0.00019998,2]
[362389329,1748245839905,-564.93566016,0.00019998,2]
[362389330,1748245839914,-420.0,0.00019998,2]
[362389331,1748245839924,-500.0,0.00019998,2]
[362389332,1748245839933,-425.30534291,0.00019998,2]
[362389333,1748245839942,-420.0,0.00019998,2]
[362389334,1748245839951,-420.0,0.00019998,2]
[362389335,1748245839962,-428.38049778,0.00019998,2]
[362389336,1748245839971,-420.0,0.00019998,2]
[362389337,1748245839981,-526.21286622,0.00019998,2]
[362389338,1748245839991,-420.0,0.00019998,2]
[362389339,1748245840000,-420.0,0.00019998,2]
[362389340,1748245840011,-552.62541461,0.00019998,2]
[362389341,1748245840020,-420.0,0.00019998,2]
[362389342,1748245840030,-420.0,0.00019998,2]
[362389343,1748245840040,-504.54768988,0.00019998,2]
[362389344,1748245840049,-420.0,0.00019998,2]
[362389345,1748245840058,-459.37362059,0.00019998,2]
[362389346,1748245840068,-443.89903887,0.00019998,2]
[362389347,1748245840077,-261.59,0.00019998,2]
[362389348,1748245840087,-459.53,0.00019998,2]
[362389349,1748245840096,-421.34829657,0.00019998,2]
[362389350,1748245840106,-420.0,0.00019998,2]
[362389351,1748245840115,-464.95632062,0.00019998,2]
[362389352,1748245840125,-335.95,0.00019998,2]
[362389353,1748245840134,-420.0,0.00019998,2]
[362389354,1748245840143,-420.0,0.00019998,2]
[362389355,1748245840152,-420.0,0.00019998,2]
[362389356,1748245840161,-420.0,0.00019998,2]
[362389357,1748245840171,-426.88883635,0.00019998,2]
[362389358,1748245840180,-420.0,0.00019998,2]
[362389359,1748245840190,-431.63072478,0.00019998,2]
[362389360,1748245840200,-420.0,0.00019998,2]
[362389361,1748245840209,-420.0,0.00019998,2]
[362389362,1748245840218,-420.0,0.00019998,2]
[362389363,1748245840227,-432.90459341,0.00019998,2]
[362389364,1748245840236,-420.0,0.00019998,2]
[362389365,1748245840246,-423.47295584,0.00019998,2]
[362389366,1748245840255,-431.43882734,0.00019998,2]
[362389367,1748245840264,-420.0,0.00019998,2]
[362389368,1748245840273,-420.0,0.00019998,2]
[362389369,1748245840283,-420.0,0.00019998,2]
[362389370,1748245840292,-420.0,0.00019998,2]
[362389371,1748245840301,-420.0,0.00019998,2]
[362389372,1748245840310,-420.0,0.00019998,2]
[362389373,1748245840319,-583.2,0.00019998,2]
[362389374,1748245840328,-568.76,0.00019998,2]
[362389376,1748245840337,-420.0,0.00019998,2]
[362389378,1748245840346,-482.36,0.00019998,2]
[362389379,1748245840355,-211.52,0.00019998,2]
[362389380,1748245840364,-482.83372814,0.00019998,2]
[362389381,1748245840374,-601.15,0.00019998,2]
[362389382,1748245840383,-420.0,0.00019998,2]
[362389383,1748245840392,-420.0,0.00019998,2]
[362389384,1748245840401,-420.0,0.00019998,2]
[362389385,1748245840410,-420.0,0.00019998,2]
[362389386,1748245840420,-420.0,0.00019998,2]
[362389387,1748245840429,-1471.62,0.00019998,2]
[362389388,1748245840438,-420.0,0.00019998,2]
[362389389,1748245840448,-420.0,0.00019999,2]
[362389390,1748245840457,-420.0,0.00019999,2]
[362389391,1748245840466,-420.0,0.00019999,2]
[362389392,1748245840475,-420.0,0.00019999,2]
[362389393,1748245840485,-420.0,0.00019999,2]
[362389394,1748245840495,-420.0,0.00019999,2]
[362389395,1748245840504,-420.0,0.00019999,2]
[362389396,1748245840513,-420.0,0.00019999,2]
[362389397,1748245840522,-420.0,0.00019999,2]
[362389398,1748245840531,-420.0,0.00019999,2]
[362389399,1748245840541,-420.0,0.00019999,2]
[362389400,1748245840550,-519.18547977,0.00019999,2]
[362389401,1748245840559,-560.97,0.00019999,2]
[362389402,1748245840569,-422.69607297,0.00019999,2]
[362389403,1748245840579,-422.61800865,0.00019999,2]
[362389404,1748245840588,-411.81452674,0.00019999,2]
[362389405,1748245840598,-422.918372,0.00019999,2]
[362389406,1748245840607,-427.00185746,0.00019999,2]
[362389407,1748245840617,-390.69227242,0.00019999,2]
[362389408,1748245840626,-420.0,0.00019999,2]
[362389409,1748245840635,-428.71658652,0.00019999,2]
[362389410,1748245840645,-538.77048822,0.00019999,2]
[362389411,1748245840654,-3158.71540652,0.00019999,2]
[362389412,1748245840663,-446.14,0.00019999,2]
[362389413,1748245840672,-426.26204596,0.00019999,2]
[362389414,1748245840682,-156.159,0.00019999,2]
[362389415,1748245840691,-433.44,0.00019999,2]
[362389416,1748245840700,-433.44,0.00019999,2]
[362389417,1748245840710,-433.44,0.00019999,2]
[362389418,1748245840720,-433.44,0.00019999,2]
[362389419,1748245840730,-433.44,0.00019999,2]
[362389420,1748245840740,-433.44,0.00019999,2]
[362389421,1748245840750,-433.44,0.00019999,2]
[362389422,1748245840760,-433.44,0.00019999,2]
[362389423,1748245840770,-433.44,0.00019999,2]
[362389424,1748245840779,-433.44,0.00019999,2]
[362389425,1748245840789,-433.44,0.00019999,2]
[362389426,1748245840800,-433.44,0.00019999,2]
[362389427,1748245840810,-433.44,0.00019999,2]
[362389428,1748245840823,-433.44,0.00019999,2]
[362389429,1748245840835,-433.44,0.00019999,2]
[362389430,1748245840845,-433.44,0.00019999,2]
[362389431,1748245840856,-433.44,0.00019999,2]
[362389432,1748245840866,-433.44,0.00019999,2]
[362389433,1748245840875,-433.44,0.00019999,2]
[362389434,1748245840885,-433.44,0.00019999,2]
[362389435,1748245840899,-433.44,0.00019999,2]
[362389436,1748245840912,-433.44,0.00019999,2]
[362389437,1748245840922,-433.44,0.00019999,2]
[362389438,1748245840934,-433.55677002,0.00019999,2]
[362389439,1748245840949,-420.0,0.00019999,2]
[362389440,1748245840961,-420.0,0.00019999,2]
[362389441,1748245840975,-387.6757836,0.00019999,2]
[362389442,1748245840990,-420.0,0.00019999,2]
[362389443,1748245841005,-289.83,0.00019999,2]
[362389444,1748245841018,-427.73988531,0.00019999,2]
[362389445,1748245841029,-420.0,0.00019999,2]
[362389446,1748245841040,-420.0,0.00019999,2]
[362389447,1748245841052,-323.15725755,0.00019999,2]
[362389448,1748245841064,-420.0,0.00019999,2]
[362389449,1748245841077,-258.3041069,0.00019999,2]
[362389450,1748245841089,-187.21552083,0.00019999,2]
[362389451,1748245841102,-420.0,0.00019999,2]
[362389452,1748245841115,-439.74,0.00019999,2]
[362389453,1748245841127,-397.34256473,0.00019999,2]
[362389454,1748245841139,-502.8193149,0.00019999,2]
[362389455,1748245841152,-420.0,0.00019999,2]
[362389456,1748245841166,-544.36035454,0.00019999,2]
[362389457,1748245841178,-383.44585775,0.00019999,2]
[362389458,1748245841190,-420.0,0.00019999,2]
[362389459,1748245841201,-420.0,0.00019999,2]
[362389460,1748245841211,-432.70157341,0.00019999,2]
[362389461,1748245841222,-420.0,0.00019999,2]
[362389462,1748245841234,-420.0,0.00019999,2]
[362389463,1748245841246,-420.0,0.00019999,2]
[362389464,1748245841259,-420.0,0.00019999,2]
[362389465,1748245841271,-305.75,0.00019999,2]
[362389466,1748245841284,-491.96,0.00019999,2]
[362389467,1748245841295,-315.8717221,0.00019999,2]
[362389468,1748245841308,-436.94397347,0.00019999,2]
[362389469,1748245841321,-420.0,0.00019999,2]
[362389470,1748245841334,-420.0,0.00019999,2]
[362389471,1748245841346,-429.48524002,0.00019999,2]
[362389472,1748245841358,-420.0,0.00019999,2]
[362389473,1748245841371,-425.55670529,0.00019999,2]
[362389474,1748245841382,-178.94,0.00019999,2]
[362389475,1748245841395,-420.0,0.00019999,2]
[362389476,1748245841408,-420.0,0.00019999,2]
[362389477,1748245841420,-446.81512574,0.00019999,2]
[362389478,1748245841432,-359.82,0.00019999,2]
[362389479,1748245841444,-420.0,0.00019999,2]
[362389480,1748245841456,-420.0,0.00019999,2]
[362389481,1748245841468,-210.13,0.00019999,2]
[362389482,1748245841479,-420.0,0.00019999,2]
[362389483,1748245841491,-420.0,0.00019999,2]
[362389484,1748245841502,-299.5,0.00019999,2]
[362389485,1748245841513,-558.97131378,0.00019999,2]
[362389486,1748245841527,-427.94577486,0.00019999,2]
[362389487,1748245841540,-448.71878785,0.00019999,2]
[362389488,1748245841551,-420.0,0.00019999,2]
[362389489,1748245841562,-423.41791589,0.00019999,2]
[362389490,1748245841573,-420.0,0.00019999,2]
[362389491,1748245841584,-391.34,0.00019999,2]
[362389492,1748245841595,-420.0,0.00019999,2]
[362389493,1748245841605,-420.0,0.00019999,2]
[362389494,1748245841615,-414.79694624,0.00019999,2]
[362389495,1748245841626,-420.0,0.00019999,2]
[362389496,1748245841637,-425.92,0.00019999,2]
[362389497,1748245841649,-420.0,0.00019999,2]
[362389498,1748245841662,-420.0,0.00019999,2]
[362389499,1748245841676,-420.0,0.00019999,2]
[362389500,1748245841686,-420.0,0.00019999,2]
[362389501,1748245841696,-374.05,0.00019999,2]
[362389502,1748245841707,-420.0,0.00019999,2]
[362389503,1748245841717,-164.21677986,0.00019999,2]
[362389504,1748245841727,-443.44922869,0.00019999,2]
[362389505,1748245841738,-380.06267771,0.00019999,2]
[362389506,1748245841751,-152.03454684,0.00019999,2]
[362389507,1748245841764,-500.0,0.00019999,2]
[362389508,1748245841776,-109.30642225,0.00019999,2]
[362389509,1748245841799,-254.35520314,0.00019999,2]
[362389510,1748245841828,-136.33837461,0.00019999,2]
[362389511,1748245841839,-433.71163887,0.00019999,2]
[362389512,1748245841849,-420.0,0.00019999,2]
[362389513,1748245841864,-420.0,0.00019999,2]
[362389514,1748245841875,-420.0,0.00019999,2]
[362389515,1748245841887,-420.0,0.00019999,2]
[362389516,1748245841899,-417.5,0.00019999,2]
[362389517,1748245841911,-564.09320318,0.00019999,2]
[362389518,1748245841922,-458.60504789,0.00019999,2]
[362389519,1748245841933,-420.0,0.00019999,2]
[362389520,1748245841944,-420.0,0.00019999,2]
[362389521,1748245841955,-44.24352298,0.00019999,2]
[362389522,1748245842130,-420.0,0.00019946,2]
[362389523,1748245842142,-455.24,0.00019998,2]
[362389524,1748245842153,-375.75647702,0.00019999,2]
[362389525,1748245842164,-293.92,0.00019999,2]
[362389526,1748245842175,-420.0,0.00019999,2]
[362389527,1748245842186,-167.6196509,0.00019999,2]
[362389528,1748245842197,-420.0,0.00019999,2]
[362389529,1748245842208,-264.38,0.00019999,2]
[362389530,1748245842219,-420.0,0.00019999,2]
[362389533,1748245842229,-328.31,0.00019999,2]
[362389534,1748245842239,-420.0,0.00019999,2]
[362389535,1748245842250,-420.0,0.00019999,2]
[362389536,1748245842260,-420.0,0.00019999,2]
[362389537,1748245842271,-165.26,0.00019999,2]
[362389538,1748245842282,-420.0,0.00019999,2]
[362389539,1748245842292,-409.76,0.00019999,2]
[362389540,1748245842303,-432.09410796,0.00019999,2]
[362389541,1748245842314,-1127.24,0.00019999,2]
[362389542,1748245842325,-1127.24,0.00019999,2]
[362389543,1748245842336,-1127.24,0.00019999,2]
[362389544,1748245842347,-1127.24,0.00019999,2]
[362389545,1748245842357,-1127.24,0.00019999,2]
[362389546,1748245842368,-1127.24,0.00019999,2]
[362389547,1748245842379,-1127.24,0.00019999,2]
[362389548,1748245842389,-1127.24,0.00019999,2]
[362389549,1748245842400,-1127.24,0.00019999,2]
[362389550,1748245842411,-1127.24,0.00019999,2]
[362389551,1748245842422,-1127.24,0.00019999,2]
[362389552,1748245842435,-1127.24,0.00019999,2]
[362389553,1748245842446,-1127.24,0.00019999,2]
[362389554,1748245842458,-1127.24,0.00019999,2]
[362389555,1748245842469,-1127.24,0.00019999,2]
[362389556,1748245842481,-1127.24,0.00019999,2]
[362389557,1748245842493,-1127.24,0.00019999,2]
[362389558,1748245842505,-1127.24,0.00019999,2]
[362389559,1748245842516,-1127.24,0.00019999,2]
[362389560,1748245842527,-1127.24,0.00019999,2]
[362389561,1748245842538,-1127.24,0.00019999,2]
[362389562,1748245842549,-1127.24,0.00019999,2]
[362389564,1748245842560,-1127.24,0.00019999,2]
[362389566,1748245842571,-1127.3658,0.00019999,2]
[362389567,1748245842583,-420.0,0.00019999,2]
[362389568,1748245842594,-420.0,0.00019999,2]
[362389569,1748245842605,-420.0,0.00019999,2]
[362389570,1748245842616,-420.0,0.00019999,2]
[362389571,1748245842627,-420.0,0.00019999,2]
[362389572,1748245842638,-420.0,0.00019999,2]
[362389573,1748245842649,-420.0,0.00019999,2]
[362389574,1748245842660,-420.0,0.00019999,2]
[362389575,1748245842671,-420.0,0.00019999,2]
[362389576,1748245842682,-420.0,0.00019999,2]
[362389577,1748245842693,-420.0,0.00019999,2]
[362389578,1748245842704,-420.0,0.00019999,2]
[362389579,1748245842715,-420.0,0.00019999,2]
[362389580,1748245842726,-420.0,0.00019999,2]
[362389581,1748245842737,-420.0,0.00019999,2]
[362389582,1748245842748,-420.0,0.00019999,2]
[362389583,1748245842759,-420.0,0.00019999,2]
[362389584,1748245842770,-420.0,0.00019999,2]
[362389585,1748245842781,-420.0,0.00019999,2]
[362389586,1748245842791,-420.0,0.00019999,2]
[362389587,1748245842802,-420.0,0.00019999,2]
[362389588,1748245842813,-420.0,0.00019999,2]
[362389589,1748245842826,-420.0,0.00019999,2]
[362389590,1748245842838,-173.14,0.00019999,2]
[362389591,1748245842849,-420.0,0.00019999,2]
[362389592,1748245842860,-537.83987271,0.00019999,2]
[362389593,1748245842871,-420.0,0.00019999,2]
[362389594,1748245842882,-420.0,0.00019999,2]
[362389595,1748245842896,-420.0,0.00019999,2]
[362389596,1748245842907,-420.0,0.00019999,2]
[362389597,1748245842918,-420.0,0.00019999,2]
[362389598,1748245842929,-420.0,0.00019999,2]
[362389599,1748245842941,-420.0,0.00019999,2]
[362389600,1748245842951,-420.0,0.00019999,2]
[362389601,1748245842962,-420.0,0.00019999,2]
[362389602,1748245842973,-420.0,0.00019999,2]
[362389603,1748245842983,-420.0,0.00019999,2]
[362389604,1748245842994,-445.71,0.00019999,2]
[362389606,1748245843005,-420.0,0.00019999,2]
[362389607,1748245843015,-420.0,0.00019999,2]
[362389609,1748245843026,-420.0,0.00019999,2]
[362389611,1748245843036,-465.06,0.00019999,2]
[362389613,1748245843047,-420.0,0.00019999,2]
[362389615,1748245843057,-465.06,0.00019999,2]
[362389618,1748245843068,-420.0,0.00019999,2]
[362389620,1748245843079,-465.06,0.00019999,2]
[362389622,1748245843090,-418.52,0.00019999,2]
[362389624,1748245843100,-465.06,0.00019999,2]
[362389626,1748245843110,-465.06,0.00019999,2]
[362389628,1748245843120,-465.06,0.00019999,2]
[362389630,1748245843131,-465.06,0.00019999,2]
[362389632,1748245843142,-420.0,0.00019999,2]
[362389635,1748245843152,-465.06,0.00019999,2]
[362389637,1748245843161,-465.06,0.00019999,2]
[362389639,1748245843171,-465.06,0.00019999,2]
[362389641,1748245843181,-465.06,0.00019999,2]
[362389643,1748245843191,-465.06,0.00019999,2]
[362389645,1748245843202,-465.06,0.00019999,2]
[362389647,1748245843213,-465.06,0.00019999,2]
[362389649,1748245843224,-465.06,0.00019999,2]
[362389652,1748245843234,-465.06,0.00019999,2]
[362389654,1748245843245,-465.06,0.00019999,2]
[362389656,1748245843256,-465.06,0.00019999,2]
[362389658,1748245843267,-465.06,0.00019999,2]
[362389660,1748245843277,-465.06,0.00019999,2]
[362389662,1748245843288,-465.06,0.00019999,2]
[362389665,1748245843299,-465.06,0.00019999,2]
[362389667,1748245843310,-465.06,0.00019999,2]
[362389669,1748245843321,-465.23,0.00019999,2]
[362389671,1748245843331,-420.0,0.00019999,2]
[362389673,1748245843342,-420.0,0.00019999,2]
[362389675,1748245843351,-420.0,0.00019999,2]
[362389677,1748245843362,-420.0,0.00019999,2]
[362389679,1748245843371,-420.0,0.00019999,2]
[362389681,1748245843381,-914.14,0.00019999,2]
[362389683,1748245843391,-469.97,0.00019999,2]
[362389685,1748245843401,-914.14,0.00019999,2]
[362389718,1748245843702,-914.14,0.00019999,2]
[362389721,1748245843729,-420.0,0.00019999,2]
[362389725,1748245843754,-914.14,0.00019999,2]
[362389727,1748245843764,-461.25,0.00019999,2]
[362389729,1748245843774,-914.14,0.00019999,2]
[362389731,1748245843783,-914.14,0.00019999,2]
[362389733,1748245843794,-914.14,0.00019999,2]
[362389735,1748245843803,-914.14,0.00019999,2]
[362389737,1748245843813,-914.14,0.00019999,2]
[362389739,1748245843826,-914.14,0.00019999,2]
[362389741,1748245843835,-914.14,0.00019999,2]
[362389743,1748245843845,-914.14,0.00019999,2]
[362389745,1748245843854,-420.0,0.00019999,2]
[362389747,1748245843865,-914.14,0.00019999,2]
[362389748,1748245843875,-914.14,0.00019999,2]
[362389750,1748245843884,-914.14,0.00019999,2]
[362389753,1748245843896,-914.14,0.00019999,2]
[362389755,1748245843906,-914.14,0.00019999,2]
[362389757,1748245843915,-914.14,0.00019999,2]
[362389759,1748245843925,-914.14,0.00019999,2]
[362389760,1748245843934,-914.14,0.00019999,2]
[362389763,1748245843943,-914.14,0.00019999,2]
[362389764,1748245843953,-914.14,0.00019999,2]
[362389766,1748245843962,-914.14,0.00019999,2]
[362389768,1748245843971,-914.21,0.00019999,2]
[362389771,1748245843982,-420.0,0.00019999,2]
[362389772,1748245843991,-420.0,0.00019999,2]
[362389774,1748245844000,-420.0,0.00019999,2]
[362389776,1748245844011,-420.0,0.00019999,2]
[362389778,1748245844020,-216.5,0.00019999,2]
[362389780,1748245844029,-316.8167604,0.00019999,2]
[362389782,1748245844039,-420.0,0.00019999,2]
[362389784,1748245844047,-420.0,0.00019999,2]
[362389786,1748245844057,-420.0,0.00019999,2]
[362389788,1748245844066,-420.0,0.00019999,2]
[362389790,1748245844075,-420.0,0.00019999,2]
[362389792,1748245844084,-420.0,0.00019999,2]
[362389794,1748245844093,-420.0,0.00019999,2]
[362389796,1748245844103,-420.0,0.00019999,2]
[362389798,1748245844112,-420.0,0.00019999,2]
[362389800,1748245844121,-420.0,0.00019999,2]
[362389802,1748245844131,-420.0,0.00019999,2]
[362389804,1748245844140,-420.0,0.00019999,2]
[362389806,1748245844150,-420.0,0.00019999,2]
[362389808,1748245844159,-420.0,0.00019999,2]
[362389810,1748245844168,-348.75,0.00019999,2]
[362389812,1748245844177,-420.0,0.00019999,2]
[362389814,1748245844187,-420.0,0.00019999,2]
[362389816,1748245844196,-252.32,0.00019999,2]
[362389818,1748245844206,-420.0,0.00019999,2]
[362389820,1748245844215,-420.0,0.00019999,2]
[362389822,1748245844224,-507.4,0.00019999,2]
[362389824,1748245844233,-420.0,0.00019999,2]
[362389826,1748245844242,-420.0,0.00019999,2]
[362389828,1748245844251,-420.0,0.00019999,2]
[362389830,1748245844262,-420.0,0.00019999,2]
[362389832,1748245844271,-420.0,0.00019999,2]
[362389834,1748245844280,-420.0,0.00019999,2]
[362389836,1748245844289,-377.98474944,0.00019999,2]
[362389838,1748245844298,-420.0,0.00019999,2]
[362389840,1748245844307,-420.0,0.00019999,2]
[362389841,1748245844316,-420.0,0.00019999,2]
[362389843,1748245844326,-425.25,0.00019999,2]
[362389845,1748245844335,-420.0,0.00019999,2]
[362389847,1748245844344,-531.49,0.00019999,2]
[362389849,1748245844353,-420.0,0.00019999,2]
[362389851,1748245844363,-420.0,0.00019999,2]
[362389853,1748245844372,-420.0,0.00019999,2]
[362389855,1748245844382,-420.0,0.00019999,2]
[362389857,1748245844396,-420.0,0.00019999,2]
[362389859,1748245844405,-390.21,0.00019999,2]
[362389861,1748245844415,-420.0,0.00019999,2]
[362389863,1748245844424,-420.0,0.00019999,2]
[362389865,1748245844433,-420.0,0.00019999,2]
[362389867,1748245844442,-420.0,0.00019999,2]
[362389869,1748245844452,-378.49494986,0.00019999,2]
[362389871,1748245844461,-416.38,0.00019999,2]
[362389873,1748245844471,-4834.23,0.00019999,2]
[362389875,1748245844480,-4834.23,0.00019999,2]
[362389877,1748245844489,-4834.23,0.00019999,2]
[362389879,1748245844499,-4834.23,0.00019999,2]
[362389881,1748245844508,-4834.23,0.00019999,2]
[362389883,1748245844518,-483.68043406,0.00019999,2]
[362389885,1748245844527,-4834.23,0.00019999,2]
[362389886,1748245844536,-4834.23,0.00019999,2]
[362389888,1748245844545,-4834.23,0.00019999,2]
[362389890,1748245844555,-4834.23,0.00019999,2]
[362389892,1748245844564,-4834.23,0.00019999,2]
[362389894,1748245844573,-4834.23,0.00019999,2]
[362389896,1748245844582,-420.0,0.00019999,2]
[362389898,1748245844592,-4834.23,0.00019999,2]
[362389900,1748245844601,-4834.23,0.00019999,2]
[362389902,1748245844611,-4834.23,0.00019999,2]
[362389904,1748245844620,-4834.23,0.00019999,2]
[362389906,1748245844630,-4834.23,0.00019999,2]
[362389908,1748245844639,-4834.23,0.00019999,2]
[362389909,1748245844648,-4834.23,0.00019999,2]
[362389911,1748245844658,-4834.23,0.00019999,2]
[362389913,1748245844668,-4834.23,0.00019999,2]
[362389915,1748245844677,-4834.23,0.00019999,2]
[362389917,1748245844686,-420.0,0.00019999,2]
[362389919,1748245844696,-4834.23,0.00019999,2]
[362389921,1748245844705,-420.0,0.00019999,2]
[362389923,1748245844715,-4834.42,0.00019999,2]
[362389925,1748245844725,-420.0,0.00019999,2]
[362389927,1748245844734,-420.0,0.00019999,2]
[362389929,1748245844743,-420.0,0.00019999,2]
[362389931,1748245844752,-495.07,0.00019999,2]
[362389933,1748245844761,-287.95223254,0.00019999,2]
[362389935,1748245844770,-420.0,0.00019999,2]
[362389937,1748245844780,-420.0,0.00019999,2]
[362389939,1748245844789,-290.48532036,0.00019999,2]
[362389941,1748245844799,-420.0,0.00019999,2]
[362389943,1748245844808,-420.0,0.00019999,2]
[362389945,1748245844819,-420.0,0.00019999,2]
[362389947,1748245844829,-420.0,0.00019999,2]
[362389949,1748245844839,-420.0,0.00019999,2]
[362389951,1748245844848,-242.06,0.00019999,2]
[362389953,1748245844858,-670.45,0.00019999,2]
[362389955,1748245844868,-670.45,0.00019999,2]
[362389957,1748245844878,-670.45,0.00019999,2]
[362389959,1748245844887,-670.45,0.00019999,2]
[362389961,1748245844896,-670.45,0.00019999,2]
[362389963,1748245844906,-420.0,0.00019999,2]
[362389965,1748245844917,-670.45,0.00019999,2]
[362389967,1748245844926,-420.0,0.00019999,2]
[362389969,1748245844936,-670.45,0.00019999,2]
[362389971,1748245844945,-420.0,0.00019999,2]
[362389973,1748245844954,-386.6818491,0.00019999,2]
[362389975,1748245844963,-670.45,0.00019999,2]
[362389977,1748245844972,-420.0,0.00019999,2]
[362389979,1748245844981,-670.45,0.00019999,2]
[362389981,1748245844991,-371.16602188,0.00019999,2]
[362389982,1748245845000,-670.45,0.00019999,2]
[362389984,1748245845009,-670.45,0.00019999,2]
[362389986,1748245845018,-670.45,0.00019999,2]
[362389988,1748245845027,-420.0,0.00019999,2]
[362389990,1748245845037,-670.45,0.00019999,2]
[362389992,1748245845046,-670.45,0.00019999,2]
[362389994,1748245845055,-169.18,0.00019999,2]
[362389996,1748245845064,-670.45,0.00019999,2]
[362389998,1748245845073,-670.45,0.00019999,2]
[362390000,1748245845082,-420.0,0.00019999,2]
[362390002,1748245845091,-670.45,0.00019999,2]
[362390004,1748245845102,-670.45,0.00019999,2]